[Event "Titled Tuesday Blitz May 25 2021"]
[White "Gontcharov, Vladislav"]
[Black "Maiorov, Nikita"]
[WhiteFideId "4123492"]
[BlackFideId "13501720"]
[WhiteElo "2503"]
[BlackElo "2440"]
[Result "1-0"]
[Round "11"]
[TimeControl "180+1"]
[Date "2021.05.25"]
[WhiteClock "0:01:01"]
[BlackClock "0:00:10"]

1. e4 {[%clk 0:03:00]}  e5 {[%clk 0:02:56]} 2. Nf3 {[%clk 0:03:00]}  Nc6 {[%clk 0:02:56]} 3. Bc4 {[%clk 0:02:59]}  Bc5 {[%clk 0:02:55]} 4. d3 {[%clk 0:02:57]}  Nf6 {[%clk 0:02:52]} 5. c3 {[%clk 0:02:56]}  d6 {[%clk 0:02:30]} 6. Bb3 {[%clk 0:02:53]}  a6 {[%clk 0:01:51]} 7. O-O {[%clk 0:02:51]}  O-O {[%clk 0:01:50]} 8. Be3 {[%clk 0:02:50]}  Bxe3 {[%clk 0:01:49]} 9. fxe3 {[%clk 0:02:50]}  Na5 {[%clk 0:01:48]} 10. Bc2 {[%clk 0:02:46]}  c5 {[%clk 0:01:48]} 11. Nbd2 {[%clk 0:02:43]}  b5 {[%clk 0:01:47]} 12. Qe1 {[%clk 0:02:40]}  Ng4 {[%clk 0:01:43]} 13. h3 {[%clk 0:02:28]}  Nh6 {[%clk 0:01:42]} 14. Qg3 {[%clk 0:02:22]}  f6 {[%clk 0:01:41]} 15. Nh4 {[%clk 0:02:20]}  Kh8 {[%clk 0:01:40]} 16. Rf2 {[%clk 0:02:09]}  Be6 {[%clk 0:01:39]} 17. a3 {[%clk 0:02:08]}  Rb8 {[%clk 0:01:36]} 18. Raf1 {[%clk 0:02:06]}  Nc6 {[%clk 0:01:34]} 19. Bb3 {[%clk 0:02:02]}  Bxb3 {[%clk 0:01:33]} 20. Nxb3 {[%clk 0:02:01]}  c4 {[%clk 0:01:33]} 21. Nc1 {[%clk 0:02:00]}  cxd3 {[%clk 0:01:31]} 22. Nxd3 {[%clk 0:02:00]}  Qe7 {[%clk 0:01:28]} 23. Nb4 {[%clk 0:01:43]}  Nxb4 {[%clk 0:01:24]} 24. axb4 {[%clk 0:01:44]}  Ra8 {[%clk 0:01:16]} 25. Ra1 {[%clk 0:01:42]}  Qb7 {[%clk 0:01:13]} 26. Qf3 {[%clk 0:01:41]}  Qb6 {[%clk 0:01:11]} 27. Ra5 {[%clk 0:01:38]}  Rac8 {[%clk 0:01:08]} 28. Kh2 {[%clk 0:01:36]}  Rc4 {[%clk 0:01:07]} 29. Rd2 {[%clk 0:01:33]}  Qc6 {[%clk 0:01:02]} 30. Rd5 {[%clk 0:01:32]}  f5 {[%clk 0:00:58]} 31. Nxf5 {[%clk 0:01:28]}  Nxf5 {[%clk 0:00:57]} 32. exf5 {[%clk 0:01:27]}  e4 {[%clk 0:00:57]} 33. Qd1 {[%clk 0:01:27]}  Qb6 {[%clk 0:00:49]} 34. Qd2 {[%clk 0:01:24]}  Rcc8 {[%clk 0:00:38]} 35. Ra1 {[%clk 0:01:18]}  Rce8 {[%clk 0:00:36]} 36. Rf1 {[%clk 0:01:16]}  Rf6 {[%clk 0:00:35]} 37. Qd4 {[%clk 0:01:14]}  Qc6 {[%clk 0:00:35]} 38. g4 {[%clk 0:01:12]}  h6 {[%clk 0:00:31]} 39. Rf4 {[%clk 0:01:10]}  Rf7 {[%clk 0:00:29]} 40. Rxe4 {[%clk 0:01:09]}  Rfe7 {[%clk 0:00:27]} 41. Rxe7 {[%clk 0:01:08]}  Rxe7 {[%clk 0:00:27]} 42. e4 {[%clk 0:01:07]}  Qc7 {[%clk 0:00:25]} 43. f6 {[%clk 0:01:07]}  Rf7 {[%clk 0:00:25]} 44. fxg7+ {[%clk 0:01:06]}  Kg8 {[%clk 0:00:24]} 45. Rxd6 {[%clk 0:01:01]}  Rf3 {[%clk 0:00:18]} 46. Kg2 {[%clk 0:01:01]}  Qf7 {[%clk 0:00:10]} 1-0


[Site "https://www.chess.com"]

[Event "Titled Tuesday Blitz May 25 2021"]
[White "Gurevich, Dmitry"]
[Black "Langner, Ladislav"]
[WhiteFideId "2000407"]
[BlackFideId "300403"]
[WhiteElo "2506"]
[BlackElo "2346"]
[Result "1/2-1/2"]
[Round "11"]
[TimeControl "180+1"]
[Date "2021.05.25"]
[WhiteClock "0:00:36"]
[BlackClock "0:00:44"]

1. d4 {[%clk 0:03:00]}  Nf6 {[%clk 0:02:59]} 2. c4 {[%clk 0:03:00]}  g6 {[%clk 0:02:59]} 3. Nc3 {[%clk 0:03:00]}  d5 {[%clk 0:03:00]} 4. Nf3 {[%clk 0:02:59]}  Bg7 {[%clk 0:03:00]} 5. cxd5 {[%clk 0:02:59]}  Nxd5 {[%clk 0:02:59]} 6. Bd2 {[%clk 0:03:00]}  c5 {[%clk 0:02:59]} 7. Rc1 {[%clk 0:02:56]}  Nxc3 {[%clk 0:02:50]} 8. Bxc3 {[%clk 0:02:55]}  cxd4 {[%clk 0:02:48]} 9. Nxd4 {[%clk 0:02:54]}  O-O {[%clk 0:02:47]} 10. e3 {[%clk 0:02:54]}  Bd7 {[%clk 0:02:47]} 11. Be2 {[%clk 0:02:54]}  Nc6 {[%clk 0:02:47]} 12. O-O {[%clk 0:02:51]}  Rc8 {[%clk 0:02:45]} 13. Nxc6 {[%clk 0:02:46]}  Bxc6 {[%clk 0:02:45]} 14. Bxg7 {[%clk 0:02:35]}  Kxg7 {[%clk 0:02:45]} 15. Bf3 {[%clk 0:02:31]}  Bxf3 {[%clk 0:02:38]} 16. Qxf3 {[%clk 0:02:21]}  Qb6 {[%clk 0:02:38]} 17. b3 {[%clk 0:02:20]}  Rfd8 {[%clk 0:02:35]} 18. h4 {[%clk 0:02:18]}  h5 {[%clk 0:02:31]} 19. Qe4 {[%clk 0:02:16]}  Rxc1 {[%clk 0:02:01]} 20. Rxc1 {[%clk 0:02:15]}  Qf6 {[%clk 0:02:00]} 21. Rc2 {[%clk 0:01:58]}  Rd1+ {[%clk 0:01:48]} 22. Kh2 {[%clk 0:01:57]}  Qd6+ {[%clk 0:01:46]} 23. Qf4 {[%clk 0:01:42]}  Qxf4+ {[%clk 0:01:36]} 24. exf4 {[%clk 0:01:42]}  Rd7 {[%clk 0:01:33]} 25. Kg3 {[%clk 0:01:37]}  Rd3+ {[%clk 0:01:28]} 26. Kh2 {[%clk 0:01:31]}  Kf6 {[%clk 0:01:24]} 27. g3 {[%clk 0:01:31]}  b6 {[%clk 0:01:17]} 28. Kg2 {[%clk 0:01:26]}  Rd6 {[%clk 0:01:13]} 29. Kf3 {[%clk 0:01:26]}  Ke6 {[%clk 0:01:11]} 30. Ke4 {[%clk 0:01:23]}  Kd7 {[%clk 0:01:10]} 31. f5 {[%clk 0:01:20]}  Rf6 {[%clk 0:00:56]} 32. fxg6 {[%clk 0:01:18]}  fxg6 {[%clk 0:00:56]} 33. f3 {[%clk 0:01:08]}  Kd6 {[%clk 0:00:56]} 34. g4 {[%clk 0:01:05]}  e5 {[%clk 0:00:54]} 35. Rg2 {[%clk 0:00:47]}  Rf4+ {[%clk 0:00:52]} 36. Ke3 {[%clk 0:00:46]}  Kd5 {[%clk 0:00:50]} 37. Rd2+ {[%clk 0:00:38]}  Ke6 {[%clk 0:00:49]} 38. Rg2 {[%clk 0:00:38]}  Kd5 {[%clk 0:00:45]} 39. Rd2+ {[%clk 0:00:36]}  Ke6 {[%clk 0:00:45]} 40. Rg2 {[%clk 0:00:36]}  Kd5 {[%clk 0:00:44]} 1/2-1/2


[Site "https://www.chess.com"]

[Event "Titled Tuesday Blitz May 25 2021"]
[White "Janaszak, Dawid"]
[Black "Estrada Nieto, Julian"]
[WhiteFideId "1119206"]
[BlackFideId "5101018"]
[WhiteElo "2332"]
[BlackElo "2270"]
[Result "1/2-1/2"]
[Round "11"]
[TimeControl "180+1"]
[Date "2021.05.25"]
[WhiteClock "0:02:13"]
[BlackClock "0:02:25"]

1. d4 {[%clk 0:03:00]}  d5 {[%clk 0:02:59]} 2. Nf3 {[%clk 0:03:00]}  Nf6 {[%clk 0:02:58]} 3. Bf4 {[%clk 0:03:00]}  c5 {[%clk 0:02:57]} 4. e3 {[%clk 0:03:00]}  Nc6 {[%clk 0:02:57]} 5. Nbd2 {[%clk 0:02:59]}  cxd4 {[%clk 0:02:57]} 6. exd4 {[%clk 0:03:00]}  Qb6 {[%clk 0:02:57]} 7. Nb3 {[%clk 0:02:59]}  Bf5 {[%clk 0:02:54]} 8. c3 {[%clk 0:02:56]}  e6 {[%clk 0:02:52]} 9. h3 {[%clk 0:02:54]}  Be7 {[%clk 0:02:43]} 10. a4 {[%clk 0:02:51]}  a6 {[%clk 0:02:42]} 11. a5 {[%clk 0:02:51]}  Qd8 {[%clk 0:02:42]} 12. Bd3 {[%clk 0:02:39]}  Bxd3 {[%clk 0:02:37]} 13. Qxd3 {[%clk 0:02:40]}  O-O {[%clk 0:02:36]} 14. O-O {[%clk 0:02:39]}  Ne4 {[%clk 0:02:37]} 15. Rfe1 {[%clk 0:02:33]}  Bd6 {[%clk 0:02:36]} 16. Bxd6 {[%clk 0:02:32]}  Nxd6 {[%clk 0:02:34]} 17. Ne5 {[%clk 0:02:28]}  Rc8 {[%clk 0:02:25]} 18. Re3 {[%clk 0:02:13]} 1/2-1/2


[Site "https://www.chess.com"]

[Event "Titled Tuesday Blitz May 25 2021"]
[White "Jarovinsky, Alexey"]
[Black "Yuan, Qingyu"]
[WhiteFideId "14115131"]
[BlackFideId "8609772"]
[WhiteElo "2446"]
[BlackElo "2359"]
[Result "1-0"]
[Round "11"]
[TimeControl "180+1"]
[Date "2021.05.25"]
[WhiteClock "0:00:05"]
[BlackClock "0:00:01"]

1. Nc3 {[%clk 0:03:00]}  d5 {[%clk 0:02:58]} 2. e4 {[%clk 0:03:00]}  dxe4 {[%clk 0:02:55]} 3. Nxe4 {[%clk 0:02:59]}  Nd7 {[%clk 0:02:54]} 4. Bc4 {[%clk 0:02:55]}  Ngf6 {[%clk 0:02:53]} 5. Ng5 {[%clk 0:02:55]}  e6 {[%clk 0:02:53]} 6. Qe2 {[%clk 0:02:55]}  Nb6 {[%clk 0:02:47]} 7. Bb3 {[%clk 0:02:54]}  Be7 {[%clk 0:02:33]} 8. N1f3 {[%clk 0:02:53]}  O-O {[%clk 0:02:26]} 9. d4 {[%clk 0:02:52]}  c5 {[%clk 0:02:21]} 10. dxc5 {[%clk 0:02:41]}  Bxc5 {[%clk 0:02:20]} 11. O-O {[%clk 0:02:38]}  Bd7 {[%clk 0:02:17]} 12. Ne5 {[%clk 0:02:38]}  h6 {[%clk 0:02:08]} 13. Ne4 {[%clk 0:02:27]}  Nxe4 {[%clk 0:02:06]} 14. Qxe4 {[%clk 0:02:28]}  Bb5 {[%clk 0:01:59]} 15. c4 {[%clk 0:02:26]}  Ba4 {[%clk 0:01:59]} 16. Qxb7 {[%clk 0:02:12]}  Bd4 {[%clk 0:01:10]} 17. Nf3 {[%clk 0:01:47]}  Rb8 {[%clk 0:01:07]} 18. Qe4 {[%clk 0:01:44]}  Bf6 {[%clk 0:01:01]} 19. Bf4 {[%clk 0:01:41]}  Rc8 {[%clk 0:00:59]} 20. Rfd1 {[%clk 0:01:39]}  Qe8 {[%clk 0:00:55]} 21. Bd6 {[%clk 0:01:34]}  Bc6 {[%clk 0:00:54]} 22. Qe3 {[%clk 0:01:26]}  Be7 {[%clk 0:00:39]} 23. Ne5 {[%clk 0:01:23]}  Bb7 {[%clk 0:00:30]} 24. c5 {[%clk 0:01:12]}  Nd5 {[%clk 0:00:28]} 25. Bxd5 {[%clk 0:01:11]}  Bxd5 {[%clk 0:00:27]} 26. Bxe7 {[%clk 0:01:10]}  Qxe7 {[%clk 0:00:27]} 27. b4 {[%clk 0:01:10]}  Qb7 {[%clk 0:00:25]} 28. Rd4 {[%clk 0:00:56]}  a5 {[%clk 0:00:18]} 29. a3 {[%clk 0:00:44]}  Ra8 {[%clk 0:00:17]} 30. Rb1 {[%clk 0:00:28]}  Rfc8 {[%clk 0:00:17]} 31. Rdd1 {[%clk 0:00:23]}  axb4 {[%clk 0:00:13]} 32. axb4 {[%clk 0:00:22]}  f6 {[%clk 0:00:07]} 33. Nf3 {[%clk 0:00:20]}  Rab8 {[%clk 0:00:06]} 34. h3 {[%clk 0:00:18]}  Qc7 {[%clk 0:00:06]} 35. Nd4 {[%clk 0:00:17]}  e5 {[%clk 0:00:06]} 36. Nf5 {[%clk 0:00:16]}  Rd8 {[%clk 0:00:06]} 37. Nd6 {[%clk 0:00:15]}  Be6 {[%clk 0:00:06]} 38. b5 {[%clk 0:00:14]}  Qe7 {[%clk 0:00:05]} 39. Rbc1 {[%clk 0:00:13]}  Ba2 {[%clk 0:00:03]} 40. Qd2 {[%clk 0:00:11]}  Be6 {[%clk 0:00:03]} 41. Qe3 {[%clk 0:00:10]}  Kh8 {[%clk 0:00:02]} 42. Qa3 {[%clk 0:00:10]}  Kg8 {[%clk 0:00:02]} 43. c6 {[%clk 0:00:09]}  Qc7 {[%clk 0:00:01]} 44. Qc5 {[%clk 0:00:09]}  Rb6 {[%clk 0:00:01]} 45. Nc4 {[%clk 0:00:08]}  Rxd1+ {[%clk 0:00:02]} 46. Rxd1 {[%clk 0:00:09]}  Bxc4 {[%clk 0:00:02]} 47. Rd7 {[%clk 0:00:07]}  Qb8 {[%clk 0:00:01]} 48. Qxc4+ {[%clk 0:00:05]} 1-0


[Site "https://www.chess.com"]

[Event "Titled Tuesday Blitz May 25 2021"]
[White "Jones, Gawain C B"]
[Black "Molina, Roberto Junio Brito"]
[WhiteFideId "409561"]
[BlackFideId "2109450"]
[WhiteElo "2657"]
[BlackElo "2402"]
[Result "1-0"]
[Round "11"]
[TimeControl "180+1"]
[Date "2021.05.25"]
[WhiteClock "0:00:30"]
[BlackClock "0:00:03"]

1. d4 {[%clk 0:03:00]}  d5 {[%clk 0:02:59]} 2. c4 {[%clk 0:03:00]}  c6 {[%clk 0:03:00]} 3. Nc3 {[%clk 0:03:00]}  Nf6 {[%clk 0:02:59]} 4. Nf3 {[%clk 0:02:59]}  dxc4 {[%clk 0:02:59]} 5. a4 {[%clk 0:02:59]}  Bf5 {[%clk 0:02:59]} 6. g3 {[%clk 0:02:59]}  Nbd7 {[%clk 0:02:58]} 7. Bg2 {[%clk 0:02:59]}  e6 {[%clk 0:02:53]} 8. O-O {[%clk 0:02:59]}  a5 {[%clk 0:02:53]} 9. Nh4 {[%clk 0:02:58]}  Bg4 {[%clk 0:02:50]} 10. h3 {[%clk 0:02:58]}  Bh5 {[%clk 0:02:50]} 11. g4 {[%clk 0:02:58]}  Bg6 {[%clk 0:02:51]} 12. Nxg6 {[%clk 0:02:50]}  hxg6 {[%clk 0:02:51]} 13. e4 {[%clk 0:02:50]}  e5 {[%clk 0:02:48]} 14. Be3 {[%clk 0:02:47]}  exd4 {[%clk 0:02:48]} 15. Bxd4 {[%clk 0:02:47]}  Bc5 {[%clk 0:02:47]} 16. e5 {[%clk 0:02:47]}  Nh7 {[%clk 0:02:42]} 17. Ne4 {[%clk 0:02:42]}  Bxd4 {[%clk 0:02:38]} 18. Nd6+ {[%clk 0:02:42]}  Ke7 {[%clk 0:02:33]} 19. Qxd4 {[%clk 0:02:43]}  Qb6 {[%clk 0:02:32]} 20. Qxc4 {[%clk 0:02:38]}  Nxe5 {[%clk 0:02:27]} 21. Rfe1 {[%clk 0:02:38]}  Kxd6 {[%clk 0:02:03]} 22. Rad1+ {[%clk 0:02:27]}  Kc7 {[%clk 0:02:04]} 23. Rxe5 {[%clk 0:02:27]}  Rad8 {[%clk 0:01:56]} 24. Qxf7+ {[%clk 0:02:05]}  Kb8 {[%clk 0:01:55]} 25. Rxd8+ {[%clk 0:01:52]}  Rxd8 {[%clk 0:01:56]} 26. Re8 {[%clk 0:01:44]}  Nf6 {[%clk 0:01:23]} 27. Rxd8+ {[%clk 0:01:38]}  Qxd8 {[%clk 0:01:24]} 28. Qxg7 {[%clk 0:01:38]}  g5 {[%clk 0:01:19]} 29. Qxg5 {[%clk 0:01:34]}  Qd1+ {[%clk 0:01:16]} 30. Bf1 {[%clk 0:01:34]}  Nd5 {[%clk 0:01:15]} 31. Qd8+ {[%clk 0:01:27]}  Ka7 {[%clk 0:01:14]} 32. Qxa5+ {[%clk 0:01:27]}  Kb8 {[%clk 0:01:14]} 33. Qd8+ {[%clk 0:01:23]}  Ka7 {[%clk 0:01:13]} 34. a5 {[%clk 0:01:21]}  Qd2 {[%clk 0:01:08]} 35. a6 {[%clk 0:01:15]}  Qxb2 {[%clk 0:01:00]} 36. axb7 {[%clk 0:01:13]}  Kxb7 {[%clk 0:01:01]} 37. Qd7+ {[%clk 0:00:49]}  Kb6 {[%clk 0:01:00]} 38. Qc8 {[%clk 0:00:49]}  Qd2 {[%clk 0:00:53]} 39. Qb8+ {[%clk 0:00:44]}  Kc5 {[%clk 0:00:51]} 40. Qg3 {[%clk 0:00:42]}  Kd4 {[%clk 0:00:41]} 41. g5 {[%clk 0:00:40]}  Nf4 {[%clk 0:00:17]} 42. g6 {[%clk 0:00:36]}  Ke4 {[%clk 0:00:03]} 43. g7 {[%clk 0:00:34]}  Qd1 {[%clk 0:00:03]} 44. Qe3+ {[%clk 0:00:30]} 1-0


[Site "https://www.chess.com"]

[Event "Titled Tuesday Blitz May 25 2021"]
[White "Kazakouski, Valery"]
[Black "Sjugirov, Sanan"]
[WhiteFideId "13507443"]
[BlackFideId "4189302"]
[WhiteElo "2546"]
[BlackElo "2472"]
[Result "0-1"]
[Round "11"]
[TimeControl "180+1"]
[Date "2021.05.25"]
[WhiteClock "0:00:35"]
[BlackClock "0:01:11"]

1. d4 {[%clk 0:03:00]}  Nf6 {[%clk 0:03:00]} 2. Nf3 {[%clk 0:03:01]}  c5 {[%clk 0:02:59]} 3. d5 {[%clk 0:03:00]}  b5 {[%clk 0:02:59]} 4. Bg5 {[%clk 0:03:00]}  g6 {[%clk 0:02:58]} 5. Bxf6 {[%clk 0:03:00]}  exf6 {[%clk 0:02:59]} 6. e4 {[%clk 0:03:01]}  a6 {[%clk 0:02:58]} 7. a4 {[%clk 0:02:58]}  b4 {[%clk 0:02:58]} 8. h3 {[%clk 0:02:58]}  d6 {[%clk 0:02:57]} 9. Bd3 {[%clk 0:02:58]}  Bg7 {[%clk 0:02:57]} 10. Nbd2 {[%clk 0:02:58]}  Nd7 {[%clk 0:02:56]} 11. Nc4 {[%clk 0:02:55]}  Nb6 {[%clk 0:02:55]} 12. Nfd2 {[%clk 0:02:53]}  O-O {[%clk 0:02:52]} 13. a5 {[%clk 0:02:52]}  Nxc4 {[%clk 0:02:52]} 14. Nxc4 {[%clk 0:02:53]}  f5 {[%clk 0:02:35]} 15. exf5 {[%clk 0:02:51]}  Re8+ {[%clk 0:02:35]} 16. Kf1 {[%clk 0:02:52]}  Bb7 {[%clk 0:02:28]} 17. fxg6 {[%clk 0:02:41]}  hxg6 {[%clk 0:02:26]} 18. Qf3 {[%clk 0:02:39]}  Qg5 {[%clk 0:02:13]} 19. h4 {[%clk 0:02:04]}  Qxd5 {[%clk 0:02:10]} 20. Qxd5 {[%clk 0:02:04]}  Bxd5 {[%clk 0:02:11]} 21. Nb6 {[%clk 0:02:04]}  Be6 {[%clk 0:01:48]} 22. Nxa8 {[%clk 0:02:04]}  Rxa8 {[%clk 0:01:49]} 23. Re1 {[%clk 0:01:42]}  Bxb2 {[%clk 0:01:47]} 24. Bxg6 {[%clk 0:01:41]}  Bc3 {[%clk 0:01:46]} 25. Re3 {[%clk 0:01:29]}  Bd4 {[%clk 0:01:36]} 26. Re2 {[%clk 0:01:00]}  c4 {[%clk 0:01:32]} 27. h5 {[%clk 0:00:46]}  Rb8 {[%clk 0:01:25]} 28. Rh4 {[%clk 0:00:43]}  Bf6 {[%clk 0:01:18]} 29. Rxe6 {[%clk 0:00:38]}  Bxh4 {[%clk 0:01:17]} 30. Re4 {[%clk 0:00:35]}  fxg6 {[%clk 0:01:13]} 31. Rxh4 {[%clk 0:00:35]}  b3 {[%clk 0:01:11]} 0-1


[Site "https://www.chess.com"]

[Event "Titled Tuesday Blitz May 25 2021"]
[White "Korkmaz, Necmettin"]
[Black "Quintin Navarro, Alberto"]
[WhiteFideId "6303285"]
[BlackFideId "2292688"]
[WhiteElo "2094"]
[BlackElo "2289"]
[Result "0-1"]
[Round "11"]
[TimeControl "180+1"]
[Date "2021.05.25"]
[WhiteClock "0:00:33"]
[BlackClock "0:00:52"]

1. d4 {[%clk 0:03:00]}  Nf6 {[%clk 0:02:59]} 2. c4 {[%clk 0:02:59]}  g6 {[%clk 0:02:59]} 3. Nc3 {[%clk 0:02:55]}  Bg7 {[%clk 0:03:00]} 4. Nf3 {[%clk 0:02:55]}  d6 {[%clk 0:03:00]} 5. Bg5 {[%clk 0:02:55]}  h6 {[%clk 0:03:01]} 6. Bh4 {[%clk 0:02:55]}  g5 {[%clk 0:03:01]} 7. Bg3 {[%clk 0:02:55]}  Nh5 {[%clk 0:03:02]} 8. e3 {[%clk 0:02:48]}  c5 {[%clk 0:03:02]} 9. d5 {[%clk 0:02:40]}  Nxg3 {[%clk 0:03:01]} 10. hxg3 {[%clk 0:02:35]}  Bxc3+ {[%clk 0:03:01]} 11. bxc3 {[%clk 0:02:34]}  Kd7 {[%clk 0:03:01]} 12. e4 {[%clk 0:02:08]}  Kc7 {[%clk 0:03:00]} 13. e5 {[%clk 0:02:08]}  g4 {[%clk 0:02:50]} 14. exd6+ {[%clk 0:02:07]}  exd6 {[%clk 0:02:51]} 15. Nd2 {[%clk 0:02:07]}  Nd7 {[%clk 0:02:50]} 16. Qxg4 {[%clk 0:01:53]}  Ne5 {[%clk 0:02:49]} 17. Qd1 {[%clk 0:01:52]}  Re8 {[%clk 0:02:45]} 18. Be2 {[%clk 0:01:48]}  Nd3+ {[%clk 0:02:38]} 19. Kf1 {[%clk 0:01:48]}  Ne5 {[%clk 0:02:38]} 20. Rxh6 {[%clk 0:01:43]}  Bf5 {[%clk 0:02:30]} 21. Nf3 {[%clk 0:01:34]}  Ng4 {[%clk 0:02:25]} 22. Rh4 {[%clk 0:01:33]}  Qf6 {[%clk 0:02:21]} 23. Qd2 {[%clk 0:01:22]}  Rh8 {[%clk 0:02:14]} 24. Qf4 {[%clk 0:01:07]}  Qxc3 {[%clk 0:01:48]} 25. Rc1 {[%clk 0:01:06]}  Qb2 {[%clk 0:01:48]} 26. Re1 {[%clk 0:00:43]}  Bd7 {[%clk 0:01:38]} 27. Rxg4 {[%clk 0:00:42]}  Bxg4 {[%clk 0:01:28]} 28. Qxg4 {[%clk 0:00:42]}  Rh1+ {[%clk 0:01:21]} 29. Ng1 {[%clk 0:00:41]}  Re8 {[%clk 0:01:11]} 30. Qf3 {[%clk 0:00:33]}  Re7 {[%clk 0:00:54]} 31. a3 {[%clk 0:00:33]}  Qd2 {[%clk 0:00:51]} 32. g4 {[%clk 0:00:32]}  Rxg1+ {[%clk 0:00:51]} 33. Kxg1 {[%clk 0:00:32]}  Qxe1+ {[%clk 0:00:51]} 34. Kh2 {[%clk 0:00:33]}  Qxe2 {[%clk 0:00:52]} 0-1


[Site "https://www.chess.com"]

[Event "Titled Tuesday Blitz May 25 2021"]
[White "Krivonosov, Oleg"]
[Black "Provotorov, Ivan"]
[WhiteFideId "11600349"]
[BlackFideId "4154657"]
[WhiteElo "2727"]
[BlackElo "2562"]
[Result "1/2-1/2"]
[Round "11"]
[TimeControl "180+1"]
[Date "2021.05.25"]
[WhiteClock "0:00:29"]
[BlackClock "0:00:15"]

1. Nf3 {[%clk 0:03:00]}  Nf6 {[%clk 0:02:59]} 2. c4 {[%clk 0:02:59]}  c6 {[%clk 0:02:57]} 3. d4 {[%clk 0:02:59]}  d5 {[%clk 0:02:58]} 4. cxd5 {[%clk 0:02:59]}  cxd5 {[%clk 0:02:59]} 5. Nc3 {[%clk 0:02:58]}  Nc6 {[%clk 0:02:59]} 6. Bf4 {[%clk 0:02:57]}  a6 {[%clk 0:02:59]} 7. Rc1 {[%clk 0:02:56]}  Ne4 {[%clk 0:02:57]} 8. a3 {[%clk 0:02:54]}  Bf5 {[%clk 0:02:45]} 9. e3 {[%clk 0:02:53]}  Nxc3 {[%clk 0:02:43]} 10. Rxc3 {[%clk 0:02:52]}  e6 {[%clk 0:02:44]} 11. Bd3 {[%clk 0:02:47]}  Bxd3 {[%clk 0:02:41]} 12. Qxd3 {[%clk 0:02:47]}  Bd6 {[%clk 0:02:41]} 13. Bxd6 {[%clk 0:02:46]}  Qxd6 {[%clk 0:02:42]} 14. O-O {[%clk 0:02:46]}  O-O {[%clk 0:02:42]} 15. Rfc1 {[%clk 0:02:46]}  Rac8 {[%clk 0:02:41]} 16. Ne5 {[%clk 0:02:43]}  Ne7 {[%clk 0:02:19]} 17. Rxc8 {[%clk 0:02:32]}  Rxc8 {[%clk 0:02:12]} 18. Rxc8+ {[%clk 0:02:31]}  Nxc8 {[%clk 0:02:13]} 19. Qc3 {[%clk 0:02:30]}  Ne7 {[%clk 0:02:11]} 20. Nd3 {[%clk 0:02:22]}  b6 {[%clk 0:01:43]} 21. g3 {[%clk 0:02:10]}  f6 {[%clk 0:01:42]} 22. Kf1 {[%clk 0:02:04]}  Kf7 {[%clk 0:01:41]} 23. Ke2 {[%clk 0:02:03]}  g5 {[%clk 0:01:41]} 24. h3 {[%clk 0:02:01]}  h5 {[%clk 0:01:39]} 25. Qb4 {[%clk 0:01:48]}  Qc6 {[%clk 0:01:33]} 26. Kd2 {[%clk 0:01:46]}  Nf5 {[%clk 0:01:28]} 27. Qc3 {[%clk 0:01:39]}  Qd7 {[%clk 0:01:26]} 28. Qb4 {[%clk 0:01:34]}  Nd6 {[%clk 0:01:24]} 29. b3 {[%clk 0:01:15]}  Qc6 {[%clk 0:01:17]} 30. f3 {[%clk 0:01:12]}  Nf5 {[%clk 0:01:13]} 31. g4 {[%clk 0:01:11]}  Nh4 {[%clk 0:00:58]} 32. Ne1 {[%clk 0:01:05]}  hxg4 {[%clk 0:00:52]} 33. hxg4 {[%clk 0:01:03]}  Qc7 {[%clk 0:00:52]} 34. Qa4 {[%clk 0:00:56]}  a5 {[%clk 0:00:38]} 35. Qb5 {[%clk 0:00:55]}  Ke7 {[%clk 0:00:30]} 36. b4 {[%clk 0:00:45]}  Qh2+ {[%clk 0:00:28]} 37. Qe2 {[%clk 0:00:43]}  Qd6 {[%clk 0:00:20]} 38. Qb5 {[%clk 0:00:38]}  Qh2+ {[%clk 0:00:16]} 39. Qe2 {[%clk 0:00:35]}  Qd6 {[%clk 0:00:15]} 40. Qb5 {[%clk 0:00:29]}  Qh2+ {[%clk 0:00:15]} 1/2-1/2


[Site "https://www.chess.com"]

[Event "Titled Tuesday Blitz May 25 2021"]
[White "Maevsky, Nikolay"]
[Black "Stoleriu, George"]
[WhiteFideId "4198220"]
[BlackFideId "1227505"]
[WhiteElo "2282"]
[BlackElo "2227"]
[Result "1-0"]
[Round "11"]
[TimeControl "180+1"]
[Date "2021.05.25"]
[WhiteClock "0:02:23"]
[BlackClock "0:01:49"]

1. d4 {[%clk 0:03:00]}  e6 {[%clk 0:02:59]} 2. Nf3 {[%clk 0:03:00]}  Nf6 {[%clk 0:02:55]} 3. e3 {[%clk 0:03:00]}  b6 {[%clk 0:02:53]} 4. Bd3 {[%clk 0:03:01]}  Bb7 {[%clk 0:02:53]} 5. Nbd2 {[%clk 0:03:01]}  g6 {[%clk 0:02:54]} 6. O-O {[%clk 0:03:01]}  d6 {[%clk 0:02:54]} 7. e4 {[%clk 0:03:00]}  Nbd7 {[%clk 0:02:53]} 8. Re1 {[%clk 0:03:00]}  Bg7 {[%clk 0:02:53]} 9. c3 {[%clk 0:02:56]}  O-O {[%clk 0:02:50]} 10. a4 {[%clk 0:02:56]}  a5 {[%clk 0:02:45]} 11. h3 {[%clk 0:02:56]}  e5 {[%clk 0:02:44]} 12. Qc2 {[%clk 0:02:51]}  Re8 {[%clk 0:02:35]} 13. d5 {[%clk 0:02:47]}  Nh5 {[%clk 0:02:20]} 14. g3 {[%clk 0:02:47]}  Nc5 {[%clk 0:02:17]} 15. Bb5 {[%clk 0:02:43]}  Rf8 {[%clk 0:02:16]} 16. b4 {[%clk 0:02:42]}  Nd7 {[%clk 0:02:13]} 17. Nb3 {[%clk 0:02:27]}  f5 {[%clk 0:02:06]} 18. Ng5 {[%clk 0:02:26]}  Qf6 {[%clk 0:01:51]} 19. Ne6 {[%clk 0:02:26]}  Rf7 {[%clk 0:01:49]} 20. Bg5 {[%clk 0:02:23]} 1-0


[Site "https://www.chess.com"]